bitfinex/quotes_BTCUSD_20240905
["timestamp","ask_amount","ask_price","bid_price","bid_amount"]
[1725516074033,0.0562055,57344.0,57343.0,0.249332]
[1725516074289,0.0562055,57344.0,57343.0,0.272332]
[1725516075205,0.000816,57348.0,57347.0,0.004]
[1725516075426,0.000816,57348.0,57347.0,0.2338]
[1725516075711,0.367,57348.0,57347.0,0.2338]
[1725516075902,0.467,57348.0,57347.0,0.2338]
[1725516076119,0.46566291,57348.0,57347.0,0.2338]
[1725516076351,0.70978591,57348.0,57347.0,0.2338]
[1725516077731,0.488246,57348.0,57347.0,0.2338]
[1725516077999,0.366184,57348.0,57347.0,0.2338]
[1725516078243,0.366184,57348.0,57347.0,0.2368]
[1725516078690,0.366184,57348.0,57347.0,0.2338]
[1725516078907,0.366184,57348.0,57347.0,0.2368]
[1725516079151,0.366184,57348.0,57347.0,0.2338]
[1725516079383,0.26960911,57352.0,57351.0,0.004]
[1725516079634,0.26960911,57352.0,57351.0,0.1091]
[1725516079635,0.39166411,57352.0,57351.0,0.1091]
[1725516079877,0.63577111,57352.0,57351.0,0.1091]
[1725516080103,0.73577111,57352.0,57351.0,0.1091]
[1725516080785,0.73577111,57352.0,57351.0,0.1131]
[1725516081013,0.73577111,57352.0,57351.0,0.1171]
[1725516085048,0.97987811,57352.0,57351.0,0.1171]
[1725516085283,0.98069411,57352.0,57351.0,0.1171]
[1725516090003,0.73658711,57352.0,57351.0,0.1171]
[1725516090248,0.73658711,57352.0,57351.0,0.2467]
[1725516092409,0.711085,57352.0,57351.0,0.2467]
[1725516093076,0.466978,57352.0,57351.0,0.2467]
[1725516093512,0.711084,57352.0,57351.0,0.2467]
[1725516095012,1.18399,57352.0,57351.0,0.008]
[1725516095232,1.42867908,57352.0,57351.0,0.008]
[1725516095665,1.30217908,57352.0,57351.0,0.008]
[1725516096138,1.30217908,57352.0,57351.0,0.004]
[1725516096559,0.610287,57350.0,57349.0,0.003]
[1725516096780,0.710287,57350.0,57349.0,0.003]
[1725516097005,0.954402,57350.0,57349.0,0.003]
[1725516097252,0.58823,57350.0,57349.0,0.003]
[1725516097478,0.954402,57350.0,57349.0,0.003]
[1725516099001,0.954402,57350.0,57349.0,0.004]
[1725516099217,0.954402,57350.0,57349.0,0.005]
[1725516099446,0.955218,57350.0,57349.0,0.005]
[1725516102837,0.955218,57350.0,57349.0,0.1158]
[1725516104378,0.955218,57350.0,57349.0,0.002]
[1725516107923,1.0530676,57350.0,57349.0,0.002]
[1725516112432,1.0530676,57350.0,57349.0,0.003632]
[1725516112691,1.0530676,57350.0,57349.0,0.244232]
[1725516112692,0.366988,57350.0,57349.0,0.244232]
[1725516112952,0.611103,57350.0,57349.0,0.244232]
[1725516113187,0.9530676,57350.0,57349.0,0.241232]
[1725516114298,1.0530676,57350.0,57349.0,0.241232]
[1725516114760,1.0530676,57350.0,57349.0,0.003632]
[1725516116746,0.955218,57350.0,57349.0,0.003632]
[1725516118580,0.955218,57350.0,57349.0,0.112032]
[1725516119455,0.955218,57350.0,57349.0,0.246432]
[1725516120351,0.711103,57350.0,57349.0,0.249432]
[1725516120816,0.955218,57350.0,57349.0,0.249432]
[1725516126279,0.96151677,57350.0,57349.0,0.249432]
[1725516126513,0.1,57350.0,57349.0,0.3472816]
[1725516126755,0.366141,57355.0,57354.0,0.003]
[1725516127001,0.366141,57355.0,57354.0,0.2459]
[1725516127002,0.122046,57355.0,57354.0,0.2459]
[1725516127244,0.122044,57356.0,57354.0,0.026]
[1725516127489,0.10484282,57369.0,57351.0,0.00348692]
[1725516127490,0.244073,57360.0,57359.0,0.003]
[1725516127703,0.244073,57360.0,57359.0,0.1008496]
[1725516127704,0.366109,57360.0,57359.0,0.1008496]
[1725516127922,0.366109,57360.0,57359.0,0.2398]
[1725516128610,0.610182,57360.0,57359.0,0.2398]
[1725516128825,0.612182,57360.0,57359.0,0.2398]
[1725516129035,0.712182,57360.0,57359.0,0.2398]
[1725516129953,0.346073,57360.0,57359.0,0.2398]
[1725516130167,0.346073,57360.0,57359.0,0.2368]
[1725516130168,0.468109,57360.0,57359.0,0.2368]
[1725516130399,0.468109,57360.0,57359.0,0.2398]
[1725516130400,0.959254,57360.0,57359.0,0.2398]
[1725516130624,0.959254,57360.0,57359.0,0.1101]
[1725516131506,0.959254,57360.0,57359.0,0.003]
[1725516131725,0.854266,57359.0,57358.0,0.003]
[1725516131973,0.954266,57359.0,57358.0,0.003]
[1725516132201,0.854297,57357.0,57356.0,0.2344]
[1725516132433,0.954297,57357.0,57356.0,0.2344]
[1725516133613,0.954297,57357.0,57356.0,0.2354]
[1725516134931,0.954297,57357.0,57356.0,0.2364]
[1725516135399,0.954297,57357.0,57356.0,0.002]
[1725516136549,0.98165185,57357.0,57356.0,0.002]
[1725516136758,1.22573685,57357.0,57356.0,0.002]
[1725516137634,1.22655285,57357.0,57356.0,0.002]
[1725516138067,0.244094,57355.0,57349.0,0.110832]
[1725516138306,0.366172,57350.0,57349.0,0.107832]
[1725516138524,0.954402,57350.0,57349.0,0.110832]
[1725516138995,0.954402,57350.0,57349.0,0.107832]
[1725516138996,0.98175895,57350.0,57349.0,0.107832]
[1725516140758,0.98175895,57350.0,57349.0,0.111832]
[1725516141889,0.98175895,57350.0,57349.0,0.009632]
[1725516142399,0.98175895,57350.0,57349.0,0.005632]
[1725516143106,0.73764395,57350.0,57349.0,0.235432]
[1725516143330,0.49352895,57350.0,57349.0,0.235432]
[1725516143589,0.49352895,57350.0,57349.0,0.26191904]
[1725516143590,0.12735695,57350.0,57349.0,0.26191904]
[1725516143806,0.02735695,57350.0,57349.0,0.380491]
[1725516144036,0.244901,57357.0,57356.0,0.003]
[1725516144037,0.000816,57357.0,57356.0,0.003]
[1725516144278,0.000816,57357.0,57356.0,0.66176171]
[1725516144542,0.000816,57357.0,57356.0,0.90585071]
[1725516144773,0.000816,57357.0,57356.0,1.14993971]
[1725516145232,0.000816,57357.0,57356.0,0.9043644]
[1725516145667,0.000816,57357.0,57356.0,0.9033644]
[1725516145884,0.000816,57357.0,57356.0,0.9013644]
[1725516146125,0.000816,57357.0,57356.0,1.3013644]
[1725516146349,0.000816,57357.0,57356.0,1.5454534]
[1725516147286,0.001816,57357.0,57356.0,1.5724534]
[1725516147508,0.001816,57357.0,57356.0,1.3283644]
[1725516147739,0.001816,57357.0,57356.0,1.5724534]
[1725516148842,0.001816,57357.0,57356.0,1.3283644]
[1725516149742,0.001816,57357.0,57356.0,1.3299944]
[1725516152300,0.001816,57357.0,57356.0,0.69642]
[1725516152301,0.123858,57357.0,57356.0,0.69642]
[1725516152544,0.367943,57357.0,57356.0,0.69642]
[1725516153021,0.367943,57357.0,57356.0,0.29642]
[1725516153022,0.856113,57357.0,57356.0,0.29642]
[1725516153945,0.612028,57357.0,57356.0,0.29642]
[1725516154614,0.367943,57357.0,57356.0,0.29642]
[1725516155090,0.612028,57357.0,57356.0,0.29642]
[1725516155519,0.956113,57357.0,57356.0,0.02863]
[1725516155747,0.96027754,57357.0,57356.0,0.02863]
[1725516156184,0.83641954,57357.0,57356.0,0.02863]
[1725516156397,0.95846154,57357.0,57356.0,0.02863]
[1725516156634,0.954297,57357.0,57356.0,0.02863]
[1725516157087,0.954297,57357.0,57356.0,0.01563]
[1725516157307,0.955297,57357.0,57356.0,0.01563]
[1725516157734,0.954297,57357.0,57356.0,0.01563]
[1725516157955,0.954297,57357.0,57356.0,0.01663]
[1725516157956,0.98006146,57357.0,57356.0,0.01663]
[1725516158175,0.98006146,57357.0,57356.0,0.00263]
[1725516158598,0.98006146,57357.0,57356.0,0.00363]
[1725516158817,0.98006146,57357.0,57356.0,0.00263]
[1725516160233,0.98006146,57357.0,57356.0,0.00363]
[1725516161880,1.27786802,57357.0,57356.0,0.00363]
[1725516162137,0.98422619,57357.0,57356.0,0.00363]
[1725516162378,1.22831119,57357.0,57356.0,0.00363]
[1725516162903,1.22831119,57357.0,57356.0,0.00263]
[1725516163308,1.22831119,57357.0,57356.0,0.00163]
[1725516163524,1.22496146,57357.0,57356.0,0.00163]
[1725516163756,1.22996146,57357.0,57356.0,0.00163]
[1725516163974,1.22496146,57357.0,57356.0,0.00163]
[1725516164201,0.98587646,57357.0,57356.0,0.00163]
[1725516164660,0.98587646,57357.0,57356.0,0.00363]
[1725516164878,0.98987646,57357.0,57356.0,0.00363]
[1725516165331,0.98587646,57357.0,57356.0,0.00363]
[1725516165795,0.98987646,57357.0,57356.0,0.00363]
[1725516170231,0.98987646,57357.0,57356.0,0.11133]
[1725516170232,0.720027,57357.0,57356.0,0.11133]
[1725516170474,0.471942,57357.0,57356.0,0.24783]
[1725516170745,0.476942,57357.0,57356.0,0.24783]
[1725516170979,0.721027,57357.0,57356.0,0.24983]
[1725516172042,0.721027,57357.0,57356.0,0.25283]
[1725516172481,0.721027,57357.0,57356.0,0.24983]
[1725516172922,0.721027,57357.0,57356.0,0.65283]
[1725516173787,0.476942,57357.0,57356.0,0.65283]
[1725516179034,0.721027,57357.0,57356.0,0.65283]
[1725516180373,0.476942,57357.0,57356.0,0.65283]
[1725516180807,0.232857,57357.0,57356.0,0.65283]
[1725516181281,0.476942,57357.0,57356.0,0.65283]
[1725516181506,0.232857,57357.0,57356.0,0.65283]
[1725516181980,0.110815,57357.0,57356.0,0.65283]
[1725516182204,0.010815,57357.0,57356.0,1.041963]
[1725516182684,0.010815,57357.0,57356.0,0.797874]
[1725516182894,0.010815,57357.0,57356.0,0.67583]
[1725516183112,0.132857,57357.0,57356.0,0.67583]
[1725516183332,0.132857,57357.0,57356.0,0.64783]
[1725516183333,0.232857,57357.0,57356.0,0.64783]
[1725516183561,0.233857,57357.0,57356.0,0.65483]
[1725516183794,0.234857,57357.0,57356.0,0.66183]
[1725516184059,0.99446384,57357.0,57356.0,0.01763]
[1725516187963,0.75037884,57357.0,57356.0,0.01763]
[1725516188672,0.50629384,57357.0,57356.0,0.12623]
[1725516190066,0.26220884,57357.0,57356.0,0.12623]
[1725516190531,0.50629384,57357.0,57356.0,0.12623]
[1725516190775,0.75037884,57357.0,57356.0,0.12623]
[1725516195979,0.26220884,57357.0,57356.0,0.12623]
[1725516196199,0.234857,57357.0,57356.0,0.25173]
[1725516196422,0.112815,57357.0,57356.0,0.25173]
[1725516196641,0.234857,57357.0,57356.0,0.25173]
[1725516197070,0.112815,57357.0,57356.0,0.25173]
[1725516197268,0.012815,57357.0,57356.0,0.25173]
[1725516197953,0.012815,57357.0,57356.0,0.65173]
[1725516198184,0.134857,57357.0,57356.0,0.65173]
[1725516198638,0.012815,57357.0,57356.0,0.65173]
[1725516199092,0.04016491,57357.0,57356.0,0.65173]
[1725516200851,0.012815,57357.0,57356.0,0.65173]
[1725516203797,0.134857,57357.0,57356.0,0.65173]
[1725516204037,0.406293,57357.0,57356.0,0.25173]
[1725516205627,0.162208,57357.0,57356.0,0.25173]
[1725516205847,0.040166,57357.0,57356.0,0.25173]
[1725516206076,0.040166,57357.0,57356.0,0.65173]
[1725516206304,0.040166,57357.0,57356.0,0.67473]
[1725516206521,0.012815,57357.0,57356.0,0.796774]
[1725516206996,0.012815,57357.0,57356.0,1.040863]
[1725516208116,0.04016479,57357.0,57356.0,1.040863]
[1725516209307,0.04016479,57357.0,57356.0,1.319942]
[1725516210436,0.03816479,57357.0,57356.0,1.305942]
[1725516210891,0.011815,57357.0,57356.0,1.319942]
[1725516211140,0.010815,57357.0,57356.0,1.305942]
[1725516211387,0.010815,57357.0,57356.0,1.319942]
[1725516211388,0.011815,57357.0,57356.0,1.319942]
[1725516211628,0.011815,57357.0,57356.0,1.576031]
[1725516211849,0.011815,57357.0,57356.0,1.590031]
[1725516212303,0.011815,57357.0,57356.0,1.576031]
[1725516212794,0.011815,57357.0,57356.0,1.590031]
[1725516213461,0.011815,57357.0,57356.0,1.588031]
[1725516214218,0.03916201,57357.0,57356.0,1.588031]
[1725516214627,0.03916201,57357.0,57356.0,1.578031]
[1725516217721,0.03916201,57357.0,57356.0,1.588031]
[1725516218157,0.03916201,57357.0,57356.0,1.590031]
[1725516219037,0.011815,57357.0,57356.0,1.590031]
[1725516220159,0.011815,57357.0,57356.0,1.610031]
[1725516220637,0.03916109,57357.0,57356.0,1.610031]
[1725516223022,0.03916109,57357.0,57356.0,1.85412]
[1725516226136,0.011815,57357.0,57356.0,1.85412]
[1725516226577,0.011815,57357.0,57356.0,1.608031]
[1725516227464,0.011815,57357.0,57356.0,1.610031]
[1725516229119,0.011815,57357.0,57356.0,1.608031]
[1725516229544,0.03916205,57357.0,57356.0,1.608031]
[1725516230442,0.33703215,57372.0,57371.0,0.002]
[1725516231360,0.45904215,57372.0,57371.0,0.002]
[1725516231596,0.48439493,57372.0,57371.0,0.002]
[1725516231807,0.48439493,57372.0,57371.0,0.006]
[1725516232020,0.48439493,57372.0,57371.0,0.406]
[1725516232308,0.0273471,57383.0,57372.0,0.002]
[1725516232309,0.000816,57373.0,57372.0,0.002]
[1725516232528,0.000816,57373.0,57372.0,0.14701]
[1725516232748,0.000816,57373.0,57372.0,0.391031]
[1725516233160,0.000816,57373.0,57372.0,0.14701]
[1725516233809,0.000816,57373.0,57372.0,0.15001]
[1725516234012,0.02815945,57373.0,57372.0,0.15001]
[1725516234230,0.02815945,57373.0,57372.0,0.14701]
[1725516234657,0.02815945,57373.0,57372.0,0.406031]
[1725516234884,0.02815945,57373.0,57372.0,1.050052]
[1725516236817,0.000816,57373.0,57372.0,1.050052]
[1725516237920,0.52791009,57378.0,57375.0,0.122002]
[1725516238130,0.52791009,57378.0,57376.0,0.145001]
[1725516238337,0.52791009,57378.0,57377.0,0.124]
[1725516238575,0.52791009,57378.0,57377.0,0.147]
[1725516238995,0.52791009,57378.0,57377.0,0.547]
[1725516239880,0.52791009,57378.0,57377.0,0.791]
[1725516240095,0.52791009,57378.0,57377.0,1.1421]
[1725516240096,0.55525172,57378.0,57377.0,1.1421]
[1725516240306,0.55525172,57378.0,57377.0,1.17709]
[1725516240521,0.55525172,57378.0,57377.0,0.93309]
[1725516240727,0.55525172,57378.0,57377.0,0.93609]
[1725516240947,0.55525172,57378.0,57377.0,0.93809]
[1725516241167,0.55525172,57378.0,57377.0,0.93309]
[1725516241589,0.55525172,57378.0,57377.0,0.94709]
[1725516242020,0.55525172,57378.0,57377.0,0.95909]
[1725516242228,0.55525172,57378.0,57377.0,0.94709]
[1725516242652,0.55525172,57378.0,57377.0,0.93309]
[1725516243679,0.55525172,57378.0,57377.0,1.19109]
[1725516243885,0.52791009,57378.0,57377.0,0.94709]
[1725516244094,0.52791009,57378.0,57377.0,0.47399]
[1725516244297,0.52791009,57378.0,57377.0,0.60999]
[1725516244515,0.23733878,57378.0,57377.0,0.60999]
[1725516244727,0.23733878,57378.0,57377.0,0.59599]
[1725516244933,0.23815478,57378.0,57377.0,0.60999]
[1725516245141,0.2423229,57378.0,57377.0,0.59599]
[1725516245348,0.6083149,57378.0,57377.0,0.47399]
[1725516245800,0.6083149,57378.0,57377.0,0.428]
[1725516245801,1.5864194,57378.0,57377.0,0.428]
[1725516246015,1.4424244,57378.0,57377.0,0.03]
[1725516246226,1.6864194,57378.0,57377.0,0.03]
[1725516246657,1.6864194,57378.0,57377.0,0.016]
[1725516247314,1.6864194,57378.0,57377.0,0.002]
[1725516247573,1.6864194,57378.0,57377.0,0.016]
[1725516248053,1.6864194,57378.0,57377.0,0.026]
[1725516248285,1.6864194,57378.0,57377.0,0.012]
[1725516248754,1.6864194,57378.0,57377.0,0.023]
[1725516251498,1.6864194,57378.0,57377.0,0.021]
[1725516254149,0.86658188,57378.0,57377.0,0.021]
[1725516254360,0.98857888,57378.0,57377.0,0.021]
[1725516254589,1.23257388,57378.0,57377.0,0.021]
[1725516255462,1.25829036,57378.0,57377.0,0.021]
[1725516256334,1.25829036,57378.0,57377.0,0.02263]
[1725516256543,1.25910536,57378.0,57377.0,0.02263]
[1725516257214,1.58020036,57378.0,57377.0,0.02263]
[1725516257424,1.33620536,57378.0,57377.0,0.02263]
[1725516257666,1.11910993,57378.0,57377.0,0.02263]
[1725516257872,1.00785945,57378.0,57377.0,0.02263]
[1725516260675,0.88051348,57378.0,57377.0,0.02263]
[1725516262641,0.98051348,57378.0,57377.0,0.02263]
[1725516263062,1.22495488,57378.0,57377.0,0.02263]
[1725516265584,1.25230017,57378.0,57377.0,0.02263]
[1725516266988,0.51986877,57378.0,57377.0,0.02463]
[1725516267430,0.52403738,57378.0,57377.0,0.02463]
[1725516268094,0.76803238,57378.0,57377.0,0.02463]
[1725516268790,0.76386377,57378.0,57377.0,0.02263]
[1725516269239,1.00785877,57378.0,57377.0,0.02263]
[1725516270118,1.10561411,57378.0,57377.0,0.02263]
[1725516270977,1.11506882,57378.0,57377.0,0.02263]
[1725516271197,1.14241393,57378.0,57377.0,0.02263]
[1725516272741,1.11506882,57378.0,57377.0,0.02263]
[1725516274324,1.14241396,57378.0,57377.0,0.02263]
[1725516276758,1.14241396,57378.0,57377.0,0.26373]
[1725516276759,1.10561396,57378.0,57377.0,0.26373]
[1725516276951,1.00785862,57378.0,57377.0,0.26373]
[1725516281245,0.98051348,57378.0,57377.0,0.26373]
[1725516286560,0.98051348,57378.0,57377.0,0.02263]
[1725516286561,1.02651348,57378.0,57377.0,0.02263]
[1725516286998,1.08440383,57378.0,57377.0,0.02263]
[1725516287237,1.18911294,57378.0,57377.0,0.02263]
[1725516287462,1.32839883,57378.0,57377.0,0.02263]
[1725516287689,1.41699883,57378.0,57377.0,0.02263]
[1725516287912,1.41699883,57378.0,57377.0,0.01163]
[1725516288152,1.41699883,57378.0,57377.0,0.01263]
[1725516288153,1.61527227,57378.0,57377.0,0.01263]
[1725516288384,1.61727227,57378.0,57377.0,0.01263]
[1725516289293,1.61727227,57378.0,57377.0,0.00263]
[1725516289528,1.61727227,57378.0,57377.0,0.00163]
[1725516290026,1.61727227,57378.0,57377.0,0.00263]
[1725516290469,1.61727227,57378.0,57377.0,0.00163]
[1725516290691,1.61827227,57378.0,57377.0,0.00363]
[1725516291808,1.70037267,57378.0,57377.0,0.00363]
[1725516292483,1.70037267,57378.0,57377.0,0.00263]
[1725516292693,1.70037267,57378.0,57377.0,0.00363]
[1725516292901,1.69937267,57378.0,57377.0,0.00263]
[1725516293331,1.69937267,57378.0,57377.0,0.00363]
[1725516294043,1.69937267,57378.0,57363.0,0.1041]
[1725516294044,0.95194734,57364.0,57363.0,0.1041]
[1725516294268,0.95194734,57364.0,57360.0,0.1285]
[1725516294269,0.52391074,57364.0,57361.0,0.1094]
[1725516294483,0.70792534,57361.0,57360.0,0.1285]
[1725516294705,0.79002574,57361.0,57360.0,0.1285]
[1725516294911,0.89002574,57361.0,57360.0,0.1285]
[1725516295361,1.13409374,57361.0,57360.0,0.1285]
[1725516297087,1.13409374,57361.0,57360.0,0.1335]
[1725516297319,1.13409374,57361.0,57360.0,0.1395]
[1725516298053,1.28087169,57361.0,57360.0,0.1395]
[1725516299142,1.15883769,57361.0,57360.0,0.1395]
[1725516299376,1.28087169,57361.0,57360.0,0.1395]
[1725516299605,1.19877129,57361.0,57360.0,0.1395]
[1725516301837,1.19877129,57361.0,57360.0,0.011]
[1725516302082,1.20294058,57361.0,57360.0,0.011]
[1725516302769,1.19877129,57361.0,57360.0,0.011]
[1725516302979,0.854297,57357.0,57356.0,0.24433]
[1725516303219,1.19883029,57357.0,57356.0,0.24433]
[1725516304099,1.22618401,57357.0,57356.0,0.24433]
[1725516304305,1.22618401,57357.0,57356.0,0.25433]
[1725516305408,1.22618401,57357.0,57356.0,0.26333]
[1725516306936,0.73756572,57357.0,57356.0,0.26333]
[1725516307618,0.49348072,57357.0,57356.0,0.26333]
[1725516307829,0.12735372,57357.0,57356.0,0.26333]
[1725516308018,0.12735372,57357.0,57356.0,0.66333]
[1725516308678,0.12735372,57357.0,57356.0,0.808374]
[1725516308679,0.02735372,57357.0,57356.0,0.808374]
[1725516309013,0.12735372,57357.0,57356.0,1.052463]
[1725516309220,0.12735372,57357.0,57356.0,0.808374]
[1725516310023,0.12735372,57357.0,57356.0,1.052463]
[1725516310456,0.12735372,57357.0,57356.0,0.808374]
[1725516310868,0.1,57357.0,57356.0,0.68633]
[1725516312024,0.1,57358.0,57357.0,0.2525]
[1725516312235,0.1,57358.0,57357.0,0.2775]
[1725516312959,0.1,57358.0,57357.0,0.6775]
[1725516313181,0.02580599,57363.0,57359.0,0.03499]
[1725516313182,0.122037,57360.0,57359.0,0.03499]
[1725516313405,0.222037,57360.0,57359.0,0.27229]
[1725516314073,0.1,57360.0,57359.0,0.67429]
[1725516314301,0.02735074,57360.0,57359.0,1.063404]
[1725516314527,0.02735074,57360.0,57359.0,1.075404]
[1725516315401,0.02735074,57360.0,57359.0,1.31948]
[1725516315620,0.02735074,57360.0,57359.0,1.33048]
[1725516316063,0.02735074,57360.0,57359.0,1.31948]
[1725516316283,0.02735074,57360.0,57359.0,1.33148]
[1725516316556,0.02735074,57360.0,57359.0,1.31948]
[1725516316955,0.02735074,57360.0,57359.0,1.33248]
[1725516317848,0.02735074,57360.0,57359.0,1.576556]
[1725516320700,0.244017,57373.0,57365.0,0.122024]
[1725516320924,0.244017,57373.0,57367.0,0.111]
[1725516320925,0.122016,57370.0,57367.0,0.111]
[1725516322069,0.122016,57370.0,57369.0,0.4]
[1725516322288,0.122014,57370.0,57369.0,0.4]
[1725516322963,0.122014,57370.0,57369.0,0.5049]
[1725516323265,0.222014,57370.0,57369.0,0.5049]
[1725516323485,0.222014,57370.0,57369.0,0.5079]
[1725516324353,0.466043,57370.0,57369.0,0.5079]
[1725516324562,0.49338931,57370.0,57369.0,0.5079]
[1725516324770,0.49338931,57370.0,57369.0,0.5099]
[1725516324982,0.83516905,57370.0,57369.0,0.005]
[1725516325665,1.07919805,57370.0,57369.0,0.003]
[1725516326331,0.98144731,57370.0,57369.0,0.003]
[1725516327053,0.98144731,57370.0,57369.0,0.2468]
[1725516328536,0.73741831,57370.0,57369.0,0.2468]
[1725516330643,0.73823431,57370.0,57369.0,0.2468]
[1725516331045,0.710888,57370.0,57369.0,0.2468]
[1725516331938,0.72230455,57370.0,57369.0,0.2468]
[1725516333219,0.47827555,57370.0,57369.0,0.2488]
[1725516335054,0.23424655,57370.0,57369.0,0.2488]
[1725516335908,0.11223255,57370.0,57369.0,0.370817]
[1725516336115,0.01223255,57370.0,57369.0,0.2488]
[1725516336558,0.11223255,57370.0,57369.0,0.2488]
[1725516338530,0.13957863,57370.0,57369.0,0.2488]
[1725516338758,0.26159263,57370.0,57369.0,0.2488]
[1725516339173,0.26159263,57370.0,57369.0,0.6488]
[1725516339375,0.13957863,57370.0,57369.0,0.6488]
[1725516340880,0.11223255,57370.0,57369.0,0.6488]
[1725516342983,0.11223255,57370.0,57369.0,0.65043]
[1725516344070,0.23424655,57370.0,57369.0,0.65043]
[1725516344498,0.11223255,57370.0,57369.0,0.65043]
[1725516345159,0.11223255,57370.0,57369.0,0.25043]
[1725516345368,0.23424655,57370.0,57369.0,0.25043]
[1725516345602,0.23424655,57370.0,57369.0,0.24843]
[1725516345603,0.47827555,57370.0,57369.0,0.24843]
[1725516345819,0.47827555,57370.0,57369.0,0.25043]
[1725516346902,0.21581873,57370.0,57369.0,0.25043]
[1725516347123,0.22835758,57370.0,57369.0,0.25043]
[1725516347343,0.35037158,57370.0,57369.0,0.25043]
[1725516348235,0.59440058,57370.0,57369.0,0.25043]
[1725516349084,0.69440058,57370.0,57369.0,0.25043]
[1725516349530,0.69440058,57370.0,57369.0,0.00663]
[1725516350428,0.72222514,57370.0,57369.0,0.00663]
[1725516350685,0.344029,57370.0,57369.0,0.00663]
[1725516350902,0.72136304,57370.0,57369.0,0.00663]
[1725516354268,0.72136304,57370.0,57369.0,0.00463]
[1725516354269,0.74870995,57370.0,57369.0,0.00463]
[1725516356022,0.74952495,57370.0,57369.0,0.00463]
[1725516357566,0.99355395,57370.0,57369.0,0.00463]
[1725516360757,1.07214884,57370.0,57369.0,0.00463]
[1725516363224,0.99355395,57370.0,57369.0,0.00463]
[1725516363470,1.50067444,57370.0,57369.0,0.00463]
[1725516363681,1.37968295,57370.0,57369.0,0.00463]
[1725516363896,1.37968295,57370.0,57369.0,0.00363]
[1725516364370,1.37968295,57370.0,57369.0,0.00163]
[1725516364579,1.78090174,57370.0,57369.0,0.00163]
[1725516364794,1.69579011,57370.0,57369.0,0.00163]
[1725516365009,1.6974147,57370.0,57369.0,0.00163]
[1725516365236,1.6974147,57370.0,57359.0,0.001632]
[1725516365237,1.32818824,57360.0,57359.0,0.001632]
[1725516365692,1.43934615,57360.0,57359.0,0.001632]
[1725516365925,1.69341815,57360.0,57359.0,0.001632]
[1725516366157,1.74077418,57360.0,57359.0,0.001632]
[1725516366600,2.07161933,57360.0,57359.0,0.002632]
[1725516366885,2.12532208,57360.0,57359.0,0.002632]
[1725516367098,2.12532208,57360.0,57359.0,0.001632]
[1725516367307,2.12532208,57360.0,57359.0,0.002632]
[1725516367535,2.12532208,57360.0,57359.0,0.001632]
[1725516367747,1.79447693,57360.0,57359.0,0.001632]
[1725516367959,1.89767508,57360.0,57359.0,0.002632]
[1725516368579,1.88767508,57360.0,57359.0,0.001632]
[1725516369262,1.92484503,57360.0,57359.0,0.001]
[1725516369443,1.402245,57358.0,57357.0,0.001632]
[1725516369654,1.502245,57358.0,57357.0,0.001632]
[1725516369869,1.51336057,57358.0,57357.0,0.001632]
[1725516370528,1.61766193,57358.0,57357.0,0.001632]
[1725516370967,1.63066193,57358.0,57357.0,0.002632]
[1725516371659,1.70192083,57358.0,57357.0,0.002632]
[1725516371884,2.44093243,57358.0,57357.0,0.002632]
[1725516372123,2.64179357,57358.0,57357.0,0.002632]
[1725516372587,2.64179357,57358.0,57339.0,0.00163]
[1725516372588,0.15207,57344.0,57339.0,0.00163]
[1725516372820,0.82014514,57344.0,57339.0,0.00163]
[1725516373052,1.78981198,57344.0,57339.0,0.00163]
[1725516373308,1.81717687,57344.0,57339.0,0.00163]
[1725516373546,2.06131687,57344.0,57339.0,0.00163]
[1725516373779,2.23209187,57344.0,57339.0,0.00163]
[1725516374212,0.122106,57327.0,57326.0,0.2333]
[1725516374475,0.954745,57327.0,57326.0,0.2333]
[1725516374883,0.9931203,57327.0,57326.0,0.2333]
[1725516375102,1.29103605,57327.0,57326.0,0.2333]
[1725516375322,0.610552,57325.0,57324.0,0.01]
[1725516375545,0.95521714,57325.0,57324.0,0.01]
[1725516375771,1.21043691,57325.0,57324.0,0.01]
[1725516376632,0.854787,57324.0,57323.0,0.01]
[1725516376839,0.954787,57324.0,57323.0,0.01]
[1725516377075,0.854805,57323.0,57322.0,0.1246]
[1725516377299,0.954805,57323.0,57322.0,0.1246]
[1725516377527,0.954805,57323.0,57318.0,0.1117]
[1725516377528,0.854864,57319.0,57318.0,0.1117]
[1725516377769,1.09952914,57319.0,57318.0,0.1117]
[1725516377992,1.11046926,57319.0,57318.0,0.1117]
[1725516378224,1.23784146,57319.0,57318.0,0.1117]
[1725516378665,0.854878,57318.0,57317.0,0.1415]
[1725516378884,0.954878,57318.0,57317.0,0.1415]
[1725516379130,0.96581611,57318.0,57317.0,0.1415]
[1725516381454,0.96581611,57318.0,57317.0,0.2531]
[1725516382749,0.96581611,57318.0,57317.0,0.2631]
[1725516382750,0.47731411,57318.0,57317.0,0.2631]
[1725516382987,0.23306311,57318.0,57317.0,0.2631]
[1725516383220,0.47731411,57318.0,57317.0,0.2631]
[1725516383641,0.23306311,57318.0,57317.0,0.2631]
[1725516384310,0.11093811,57318.0,57317.0,0.2851]
[1725516384522,0.01093811,57318.0,57317.0,0.32009]
[1725516384773,0.01093811,57318.0,57317.0,0.442217]
[1725516385001,0.0273722,57319.0,57318.0,0.419915]
[1725516385249,0.244217,57326.0,57318.0,0.419915]
[1725516385250,0.24423,57323.0,57322.0,0.002]
[1725516385467,0.366345,57323.0,57322.0,0.2428]
[1725516385674,0.14758965,57325.0,57324.0,0.2704]
[1725516385882,0.12211,57325.0,57324.0,0.2704]
[1725516386140,0.1,57325.0,57324.0,0.2804]
[1725516386368,0.1,57325.0,57324.0,0.402512]
[1725516386527,0.122105,57328.0,57324.0,0.402512]
[1725516386528,0.122105,57328.0,57327.0,0.022]
[1725516386752,0.122105,57328.0,57327.0,0.2765]
[1725516386986,0.366313,57328.0,57327.0,0.2765]